[Event "Titled Tuesday Blitz June 6 Late 2023"]
[White "Kaplan, Avi Harrison"]
[Black "Fiorito, Joaquin"]
[WhiteFideId "30934559"]
[BlackFideId "180173"]
[WhiteElo "1983"]
[BlackElo "2199"]
[Result "0-1"]
[Round "10"]
[TimeControl "180+2"]
[Date "2023.06.07"]
[WhiteClock "0:00:07"]
[BlackClock "0:00:04"]
[Board "57"]

1. b3 {[%clk 0:03:00]}  d5 {[%clk 0:02:59]} 2. Bb2 {[%clk 0:03:01]}  c5 {[%clk 0:03:00]} 3. e3 {[%clk 0:03:00]}  Nc6 {[%clk 0:02:59]} 4. Bb5 {[%clk 0:02:59]}  Bd7 {[%clk 0:02:59]} 5. f4 {[%clk 0:02:59]}  Nf6 {[%clk 0:02:59]} 6. Nf3 {[%clk 0:02:59]}  a6 {[%clk 0:03:00]} 7. Bxc6 {[%clk 0:02:59]}  Bxc6 {[%clk 0:03:01]} 8. Ne5 {[%clk 0:02:59]}  Rc8 {[%clk 0:03:01]} 9. d3 {[%clk 0:02:59]}  g6 {[%clk 0:03:02]} 10. O-O {[%clk 0:02:58]}  Bg7 {[%clk 0:03:02]} 11. Nd2 {[%clk 0:02:58]}  O-O {[%clk 0:03:03]} 12. Qe1 {[%clk 0:02:53]}  b5 {[%clk 0:03:03]} 13. Ndf3 {[%clk 0:02:48]}  Bb7 {[%clk 0:03:03]} 14. Qh4 {[%clk 0:02:32]}  Ne8 {[%clk 0:02:55]} 15. Ng5 {[%clk 0:02:11]}  h6 {[%clk 0:02:55]} 16. Ngxf7 {[%clk 0:02:07]}  Rxf7 {[%clk 0:02:55]} 17. Nxf7 {[%clk 0:02:06]}  Kxf7 {[%clk 0:02:56]} 18. Bxg7 {[%clk 0:02:05]}  Kxg7 {[%clk 0:02:57]} 19. f5 {[%clk 0:02:04]}  g5 {[%clk 0:02:57]} 20. Qh5 {[%clk 0:01:57]}  Qd6 {[%clk 0:02:57]} 21. h4 {[%clk 0:01:50]}  Qf6 {[%clk 0:02:57]} 22. Rae1 {[%clk 0:01:46]}  Nd6 {[%clk 0:02:57]} 23. hxg5 {[%clk 0:01:44]}  hxg5 {[%clk 0:02:52]} 24. Qg4 {[%clk 0:01:44]}  Rh8 {[%clk 0:02:51]} 25. g3 {[%clk 0:01:42]}  Nf7 {[%clk 0:02:47]} 26. e4 {[%clk 0:01:39]}  Ne5 {[%clk 0:02:42]} 27. Qe2 {[%clk 0:01:38]}  dxe4 {[%clk 0:02:40]} 28. dxe4 {[%clk 0:01:37]}  g4 {[%clk 0:02:40]} 29. Kg2 {[%clk 0:01:18]}  Nf3 {[%clk 0:02:29]} 30. Rh1 {[%clk 0:01:15]}  Rd8 {[%clk 0:02:26]} 31. Rd1 {[%clk 0:01:10]}  Rxd1 {[%clk 0:02:22]} 32. Rxd1 {[%clk 0:01:09]}  Qe5 {[%clk 0:02:21]} 33. Rd7 {[%clk 0:00:56]}  Bxe4 {[%clk 0:02:17]} 34. Kf2 {[%clk 0:00:49]}  Kf7 {[%clk 0:02:05]} 35. Qe3 {[%clk 0:00:49]}  Qxf5 {[%clk 0:02:02]} 36. Qf4 {[%clk 0:00:44]}  Qxf4 {[%clk 0:01:57]} 37. gxf4 {[%clk 0:00:45]}  Bxc2 {[%clk 0:01:57]} 38. Rc7 {[%clk 0:00:45]}  Nd2 {[%clk 0:01:49]} 39. Ke3 {[%clk 0:00:35]}  g3 {[%clk 0:01:43]} 40. Rxc5 {[%clk 0:00:26]}  Nf1+ {[%clk 0:00:44]} 41. Kf3 {[%clk 0:00:26]}  Bf5 {[%clk 0:00:36]} 42. Kg2 {[%clk 0:00:23]}  Bd3 {[%clk 0:00:31]} 43. Rc3 {[%clk 0:00:20]}  Be2 {[%clk 0:00:31]} 44. Rc5 {[%clk 0:00:13]}  e6 {[%clk 0:00:26]} 45. Re5 {[%clk 0:00:13]}  Bd3 {[%clk 0:00:26]} 46. a4 {[%clk 0:00:11]}  bxa4 {[%clk 0:00:25]} 47. bxa4 {[%clk 0:00:12]}  Kf6 {[%clk 0:00:25]} 48. a5 {[%clk 0:00:11]}  Kf7 {[%clk 0:00:19]} 49. Rc5 {[%clk 0:00:10]}  Kf6 {[%clk 0:00:16]} 50. Rc3 {[%clk 0:00:08]}  Ne3+ {[%clk 0:00:11]} 51. Kxg3 {[%clk 0:00:04]}  Nf5+ {[%clk 0:00:10]} 52. Kf3 {[%clk 0:00:04]}  Bb5 {[%clk 0:00:10]} 53. Rc5 {[%clk 0:00:03]}  Ke7 {[%clk 0:00:10]} 54. Ke4 {[%clk 0:00:04]}  Kd6 {[%clk 0:00:10]} 55. Rc1 {[%clk 0:00:04]}  Ba4 {[%clk 0:00:05]} 56. Rb1 {[%clk 0:00:02]}  Bc6+ {[%clk 0:00:05]} 57. Kd3 {[%clk 0:00:02]}  Kc5 {[%clk 0:00:05]} 58. Rc1+ {[%clk 0:00:02]}  Kb5 {[%clk 0:00:05]} 59. Ra1 {[%clk 0:00:02]}  Bd5 {[%clk 0:00:03]} 60. Rb1+ {[%clk 0:00:01]}  Kxa5 {[%clk 0:00:04]} 61. Ra1+ {[%clk 0:00:02]}  Kb5 {[%clk 0:00:04]} 62. Kc3 {[%clk 0:00:03]}  Nd6 {[%clk 0:00:04]} 63. Rb1+ {[%clk 0:00:03]}  Kc5 {[%clk 0:00:05]} 64. Ra1 {[%clk 0:00:03]}  Nb5+ {[%clk 0:00:03]} 65. Kd3 {[%clk 0:00:03]}  Kb6 {[%clk 0:00:03]} 66. Re1 {[%clk 0:00:02]}  a5 {[%clk 0:00:03]} 67. Re5 {[%clk 0:00:02]}  Ba2 {[%clk 0:00:03]} 68. f5 {[%clk 0:00:02]}  exf5 {[%clk 0:00:04]} 69. Rxf5 {[%clk 0:00:03]}  Bb1+ {[%clk 0:00:04]} 70. Kc4 {[%clk 0:00:03]}  Bxf5 {[%clk 0:00:05]} 71. Kb3 {[%clk 0:00:04]}  Be6+ {[%clk 0:00:06]} 72. Ka4 {[%clk 0:00:04]}  Nc3+ {[%clk 0:00:05]} 73. Ka3 {[%clk 0:00:05]}  Kc5 {[%clk 0:00:06]} 74. Kb2 {[%clk 0:00:04]}  Kb4 {[%clk 0:00:06]} 75. Ka1 {[%clk 0:00:05]}  Ne2 {[%clk 0:00:07]} 76. Kb2 {[%clk 0:00:05]}  Bf5 {[%clk 0:00:06]} 77. Ka2 {[%clk 0:00:05]}  a4 {[%clk 0:00:05]} 78. Kb2 {[%clk 0:00:06]}  a3+ {[%clk 0:00:06]} 79. Ka1 {[%clk 0:00:05]}  Be6 {[%clk 0:00:03]} 80. Kb1 {[%clk 0:00:06]}  Nd4 {[%clk 0:00:02]} 81. Ka1 {[%clk 0:00:06]}  Kb3 {[%clk 0:00:02]} 82. Kb1 {[%clk 0:00:06]}  a2+ {[%clk 0:00:03]} 83. Kc1 {[%clk 0:00:07]}  a1=Q+ {[%clk 0:00:04]} 84. Kd2 {[%clk 0:00:07]}  Qc3+ {[%clk 0:00:04]} 85. Kd1 {[%clk 0:00:07]}  Bg4# {[%clk 0:00:04]} 0-1


[Site "https://www.chess.com"]

[Event "Titled Tuesday Blitz June 6 Late 2023"]
[White "marik_spb"]
[Black "ATM622"]
[WhiteElo "2444"]
[BlackElo "2579"]
[Result "0-1"]
[Round "10"]
[TimeControl "180+2"]
[Date "2023.06.07"]
[WhiteClock "0:00:06"]
[BlackClock "0:00:03"]
[Board "58"]

1. d4 {[%clk 0:02:48]}  Nf6 {[%clk 0:02:59]} 2. c4 {[%clk 0:02:48]}  e6 {[%clk 0:02:59]} 3. g3 {[%clk 0:02:48]}  d5 {[%clk 0:02:59]} 4. Bg2 {[%clk 0:02:48]}  dxc4 {[%clk 0:02:57]} 5. Nf3 {[%clk 0:02:49]}  Nbd7 {[%clk 0:02:56]} 6. O-O {[%clk 0:02:49]}  c5 {[%clk 0:02:51]} 7. Na3 {[%clk 0:02:42]}  cxd4 {[%clk 0:02:46]} 8. Nxc4 {[%clk 0:02:40]}  Bc5 {[%clk 0:02:45]} 9. Nxd4 {[%clk 0:02:36]}  O-O {[%clk 0:02:43]} 10. Nb3 {[%clk 0:02:29]}  Be7 {[%clk 0:02:41]} 11. Bf4 {[%clk 0:02:29]}  Nc5 {[%clk 0:02:14]} 12. Qxd8 {[%clk 0:01:42]}  Rxd8 {[%clk 0:02:04]} 13. Nxc5 {[%clk 0:01:42]}  Bxc5 {[%clk 0:02:02]} 14. Rfd1 {[%clk 0:01:42]}  Rxd1+ {[%clk 0:01:57]} 15. Rxd1 {[%clk 0:01:42]}  Be7 {[%clk 0:01:55]} 16. Nd6 {[%clk 0:01:28]}  Bd7 {[%clk 0:01:52]} 17. Nxb7 {[%clk 0:01:23]}  Rc8 {[%clk 0:01:48]} 18. Rc1 {[%clk 0:00:59]}  Rxc1+ {[%clk 0:01:45]} 19. Bxc1 {[%clk 0:01:00]}  Nd5 {[%clk 0:01:38]} 20. Na5 {[%clk 0:00:56]}  Bb4 {[%clk 0:01:35]} 21. Nb3 {[%clk 0:00:45]}  Bb5 {[%clk 0:01:30]} 22. e3 {[%clk 0:00:45]}  Kf8 {[%clk 0:01:27]} 23. Bd2 {[%clk 0:00:44]}  Bxd2 {[%clk 0:01:23]} 24. Nxd2 {[%clk 0:00:45]}  Nb6 {[%clk 0:01:19]} 25. f4 {[%clk 0:00:42]}  Ke7 {[%clk 0:01:17]} 26. Kf2 {[%clk 0:00:41]}  e5 {[%clk 0:01:14]} 27. fxe5 {[%clk 0:00:37]}  Nd7 {[%clk 0:01:04]} 28. Nf3 {[%clk 0:00:30]}  Bc6 {[%clk 0:01:00]} 29. Nd4 {[%clk 0:00:15]}  Bxg2 {[%clk 0:00:58]} 30. Kxg2 {[%clk 0:00:16]}  Nxe5 {[%clk 0:00:58]} 31. b3 {[%clk 0:00:17]}  g6 {[%clk 0:00:55]} 32. a4 {[%clk 0:00:17]}  a5 {[%clk 0:00:53]} 33. h3 {[%clk 0:00:17]}  Kd6 {[%clk 0:00:52]} 34. g4 {[%clk 0:00:15]}  Kd5 {[%clk 0:00:50]} 35. Nc2 {[%clk 0:00:06]}  Ke4 {[%clk 0:00:49]} 36. Kf2 {[%clk 0:00:07]}  Kd3 {[%clk 0:00:46]} 37. Nd4 {[%clk 0:00:05]}  Kc3 {[%clk 0:00:43]} 38. Kg3 {[%clk 0:00:05]}  g5 {[%clk 0:00:41]} 39. h4 {[%clk 0:00:05]}  h6 {[%clk 0:00:39]} 40. Nf5 {[%clk 0:00:05]}  gxh4+ {[%clk 0:00:36]} 41. Kxh4 {[%clk 0:00:05]}  Kxb3 {[%clk 0:00:35]} 42. Nxh6 {[%clk 0:00:05]}  Kxa4 {[%clk 0:00:34]} 43. g5 {[%clk 0:00:06]}  Kb3 {[%clk 0:00:30]} 44. Nxf7 {[%clk 0:00:02]}  Nxf7 {[%clk 0:00:28]} 45. g6 {[%clk 0:00:02]}  Nh6 {[%clk 0:00:25]} 46. Kg5 {[%clk 0:00:02]}  Ng8 {[%clk 0:00:25]} 47. g7 {[%clk 0:00:02]}  a4 {[%clk 0:00:25]} 48. Kg6 {[%clk 0:00:03]}  a3 {[%clk 0:00:13]} 49. Kf7 {[%clk 0:00:03]}  Nh6+ {[%clk 0:00:10]} 50. Kg6 {[%clk 0:00:04]}  Ng8 {[%clk 0:00:10]} 51. Kf7 {[%clk 0:00:05]}  a2 {[%clk 0:00:08]} 52. Kxg8 {[%clk 0:00:05]}  a1=Q {[%clk 0:00:07]} 53. Kh7 {[%clk 0:00:03]}  Qh1+ {[%clk 0:00:06]} 54. Kg6 {[%clk 0:00:03]}  Qe4+ {[%clk 0:00:05]} 55. Kf6 {[%clk 0:00:02]}  Qf3+ {[%clk 0:00:04]} 56. Kg6 {[%clk 0:00:02]}  Qg4+ {[%clk 0:00:04]} 57. Kf6 {[%clk 0:00:02]}  Qh4+ {[%clk 0:00:02]} 58. Kf7 {[%clk 0:00:02]}  Qh5+ {[%clk 0:00:02]} 59. Kf8 {[%clk 0:00:02]}  Qf5+ {[%clk 0:00:02]} 60. Ke8 {[%clk 0:00:02]}  Qg6+ {[%clk 0:00:02]} 61. Kf8 {[%clk 0:00:03]}  Qf6+ {[%clk 0:00:02]} 62. Kg8 {[%clk 0:00:03]}  Kc4 {[%clk 0:00:02]} 63. e4 {[%clk 0:00:03]}  Kd4 {[%clk 0:00:03]} 64. Kh7 {[%clk 0:00:04]}  Qf7 {[%clk 0:00:02]} 65. Kh6 {[%clk 0:00:04]}  Qg8 {[%clk 0:00:02]} 66. Kg6 {[%clk 0:00:05]}  Kxe4 {[%clk 0:00:02]} 67. Kf6 {[%clk 0:00:06]}  Kf4 {[%clk 0:00:03]} 68. Kg6 {[%clk 0:00:06]}  Ke5 {[%clk 0:00:03]} 69. Kh6 {[%clk 0:00:06]}  Kf5 {[%clk 0:00:03]} 70. Kh5 {[%clk 0:00:06]}  Qh7# {[%clk 0:00:03]} 0-1


[Site "https://www.chess.com"]

[Event "Titled Tuesday Blitz June 6 Late 2023"]
[White "Arnold, Ken"]
[Black "Di Berardino, Diego Rafael"]
[WhiteFideId "2056836"]
[BlackFideId "2105446"]
[WhiteElo "2445"]
[BlackElo "2426"]
[Result "0-1"]
[Round "10"]
[TimeControl "180+2"]
[Date "2023.06.07"]
[WhiteClock "0:00:12"]
[BlackClock "0:00:13"]
[Board "59"]

1. d4 {[%clk 0:03:00]}  Nf6 {[%clk 0:02:58]} 2. Nf3 {[%clk 0:03:00]}  c5 {[%clk 0:02:57]} 3. dxc5 {[%clk 0:03:00]}  Na6 {[%clk 0:02:56]} 4. Nc3 {[%clk 0:02:58]}  Nxc5 {[%clk 0:02:56]} 5. e3 {[%clk 0:02:55]}  d5 {[%clk 0:02:52]} 6. Bb5+ {[%clk 0:02:55]}  Bd7 {[%clk 0:02:50]} 7. a4 {[%clk 0:02:54]}  e6 {[%clk 0:02:48]} 8. O-O {[%clk 0:02:53]}  Bd6 {[%clk 0:02:46]} 9. b3 {[%clk 0:02:48]}  O-O {[%clk 0:02:44]} 10. Bb2 {[%clk 0:02:47]}  a6 {[%clk 0:02:42]} 11. Bxd7 {[%clk 0:02:45]}  Qxd7 {[%clk 0:02:40]} 12. Qe2 {[%clk 0:02:45]}  Qc7 {[%clk 0:02:38]} 13. h3 {[%clk 0:02:44]}  Rac8 {[%clk 0:02:35]} 14. Rac1 {[%clk 0:02:43]}  Rfd8 {[%clk 0:02:27]} 15. Rfd1 {[%clk 0:02:42]}  Qb8 {[%clk 0:02:20]} 16. Nd4 {[%clk 0:02:32]}  Bf8 {[%clk 0:02:10]} 17. Qf1 {[%clk 0:02:28]}  e5 {[%clk 0:02:05]} 18. Nf3 {[%clk 0:02:18]}  e4 {[%clk 0:01:53]} 19. Nd4 {[%clk 0:02:16]}  Qe5 {[%clk 0:01:52]} 20. Nce2 {[%clk 0:02:09]}  h5 {[%clk 0:01:43]} 21. Ba1 {[%clk 0:02:04]}  Bd6 {[%clk 0:01:36]} 22. Nf4 {[%clk 0:01:58]}  Qg5 {[%clk 0:01:36]} 23. Nde2 {[%clk 0:01:49]}  Be5 {[%clk 0:01:18]} 24. Bxe5 {[%clk 0:01:46]}  Qxe5 {[%clk 0:01:19]} 25. Nd4 {[%clk 0:01:39]}  Rd7 {[%clk 0:01:12]} 26. Qe2 {[%clk 0:01:35]}  Rdc7 {[%clk 0:01:11]} 27. Rd2 {[%clk 0:01:31]}  h4 {[%clk 0:01:06]} 28. Rcd1 {[%clk 0:01:26]}  Ncd7 {[%clk 0:00:59]} 29. Qe1 {[%clk 0:01:03]}  Nb8 {[%clk 0:00:53]} 30. Nfe2 {[%clk 0:01:03]}  g6 {[%clk 0:00:42]} 31. Kh1 {[%clk 0:00:54]}  Kg7 {[%clk 0:00:42]} 32. Ng1 {[%clk 0:00:48]}  Nc6 {[%clk 0:00:40]} 33. Nxc6 {[%clk 0:00:48]}  Rxc6 {[%clk 0:00:37]} 34. Rc1 {[%clk 0:00:40]}  Qb2 {[%clk 0:00:33]} 35. Rb1 {[%clk 0:00:27]}  Qa3 {[%clk 0:00:29]} 36. Ra1 {[%clk 0:00:27]}  Qb4 {[%clk 0:00:29]} 37. Qd1 {[%clk 0:00:21]}  Qc3 {[%clk 0:00:15]} 38. Ne2 {[%clk 0:00:21]}  Qe5 {[%clk 0:00:15]} 39. Nd4 {[%clk 0:00:21]}  g5 {[%clk 0:00:15]} 40. Qe2 {[%clk 0:00:19]}  R6c7 {[%clk 0:00:15]} 41. Rad1 {[%clk 0:00:19]}  Kg6 {[%clk 0:00:15]} 42. Kg1 {[%clk 0:00:19]}  Rh8 {[%clk 0:00:13]} 43. f3 {[%clk 0:00:19]}  Re8 {[%clk 0:00:12]} 44. fxe4 {[%clk 0:00:18]}  Nxe4 {[%clk 0:00:11]} 45. Nf3 {[%clk 0:00:18]}  Qf6 {[%clk 0:00:07]} 46. Rxd5 {[%clk 0:00:19]}  Nc3 {[%clk 0:00:08]} 47. Qd3+ {[%clk 0:00:19]}  Kg7 {[%clk 0:00:08]} 48. Rxg5+ {[%clk 0:00:19]}  Kf8 {[%clk 0:00:07]} 49. Qd6+ {[%clk 0:00:17]}  Qxd6 {[%clk 0:00:07]} 50. Rxd6 {[%clk 0:00:18]}  Rxe3 {[%clk 0:00:06]} 51. Rd8+ {[%clk 0:00:17]}  Ke7 {[%clk 0:00:06]} 52. Rd3 {[%clk 0:00:18]}  Rxd3 {[%clk 0:00:07]} 53. cxd3 {[%clk 0:00:19]}  Ne2+ {[%clk 0:00:07]} 54. Kf2 {[%clk 0:00:19]}  Nf4 {[%clk 0:00:08]} 55. Re5+ {[%clk 0:00:19]}  Kf8 {[%clk 0:00:08]} 56. Re3 {[%clk 0:00:19]}  Nd5 {[%clk 0:00:08]} 57. Re4 {[%clk 0:00:18]}  Rc3 {[%clk 0:00:08]} 58. Rxh4 {[%clk 0:00:18]}  Nb4 {[%clk 0:00:09]} 59. Nd4 {[%clk 0:00:18]}  Nxd3+ {[%clk 0:00:08]} 60. Ke2 {[%clk 0:00:18]}  Ne5 {[%clk 0:00:09]} 61. Kd2 {[%clk 0:00:17]}  Rg3 {[%clk 0:00:08]} 62. Nf5 {[%clk 0:00:16]}  Rxg2+ {[%clk 0:00:08]} 63. Ke3 {[%clk 0:00:15]}  Ng6 {[%clk 0:00:08]} 64. Rc4 {[%clk 0:00:14]}  Ke8 {[%clk 0:00:09]} 65. Re4+ {[%clk 0:00:14]}  Kd7 {[%clk 0:00:09]} 66. h4 {[%clk 0:00:14]}  Rh2 {[%clk 0:00:09]} 67. Nd4 {[%clk 0:00:14]}  Rh3+ {[%clk 0:00:09]} 68. Kd2 {[%clk 0:00:14]}  Rxh4 {[%clk 0:00:09]} 69. Rxh4 {[%clk 0:00:14]}  Nxh4 {[%clk 0:00:10]} 70. Kd3 {[%clk 0:00:14]}  Ng6 {[%clk 0:00:10]} 71. Ke4 {[%clk 0:00:15]}  Ne7 {[%clk 0:00:10]} 72. b4 {[%clk 0:00:15]}  Nc6 {[%clk 0:00:10]} 73. Nc2 {[%clk 0:00:15]}  Ke6 {[%clk 0:00:10]} 74. b5 {[%clk 0:00:15]}  axb5 {[%clk 0:00:11]} 75. axb5 {[%clk 0:00:15]}  Na7 {[%clk 0:00:11]} 76. Nd4+ {[%clk 0:00:16]}  Kd6 {[%clk 0:00:12]} 77. Kf5 {[%clk 0:00:16]}  Kc5 {[%clk 0:00:12]} 78. Ke5 {[%clk 0:00:16]}  Nxb5 {[%clk 0:00:11]} 79. Nf5 {[%clk 0:00:14]}  Nc7 {[%clk 0:00:11]} 80. Kf6 {[%clk 0:00:14]}  b5 {[%clk 0:00:10]} 81. Ne3 {[%clk 0:00:14]}  b4 {[%clk 0:00:10]} 82. Kxf7 {[%clk 0:00:14]}  b3 {[%clk 0:00:10]} 83. Nd1 {[%clk 0:00:14]}  Kd4 {[%clk 0:00:11]} 84. Nb2 {[%clk 0:00:14]}  Nd5 {[%clk 0:00:11]} 85. Ke6 {[%clk 0:00:14]}  Nb6 {[%clk 0:00:11]} 86. Kf5 {[%clk 0:00:12]}  Kc3 {[%clk 0:00:12]} 87. Nd1+ {[%clk 0:00:12]}  Kd2 {[%clk 0:00:12]} 88. Nb2 {[%clk 0:00:12]}  Kc2 {[%clk 0:00:13]} 0-1


[Site "https://www.chess.com"]

[Event "Titled Tuesday Blitz June 6 Late 2023"]
[White "Ansh M Shah"]
[Black "Novikov, Evgenij"]
[WhiteFideId "25033379"]
[BlackFideId "4125380"]
[WhiteElo "2084"]
[BlackElo "2242"]
[Result "0-1"]
[Round "10"]
[TimeControl "180+2"]
[Date "2023.06.07"]
[WhiteClock "0:00:03"]
[BlackClock "0:00:18"]
[Board "63"]

1. d4 {[%clk 0:02:52]}  d5 {[%clk 0:02:59]} 2. c4 {[%clk 0:02:53]}  e6 {[%clk 0:02:58]} 3. g3 {[%clk 0:02:53]}  Nf6 {[%clk 0:02:59]} 4. Bg2 {[%clk 0:02:54]}  Be7 {[%clk 0:02:59]} 5. Nf3 {[%clk 0:02:55]}  O-O {[%clk 0:02:59]} 6. O-O {[%clk 0:02:56]}  c6 {[%clk 0:03:00]} 7. Nbd2 {[%clk 0:02:55]}  Nbd7 {[%clk 0:03:00]} 8. Qc2 {[%clk 0:02:55]}  b6 {[%clk 0:03:01]} 9. e4 {[%clk 0:02:56]}  a5 {[%clk 0:03:01]} 10. Rd1 {[%clk 0:02:53]}  Ba6 {[%clk 0:03:00]} 11. Bf1 {[%clk 0:02:52]}  Qb8 {[%clk 0:02:54]} 12. e5 {[%clk 0:02:49]}  Ne8 {[%clk 0:02:54]} 13. cxd5 {[%clk 0:02:49]}  cxd5 {[%clk 0:02:53]} 14. Bxa6 {[%clk 0:02:48]}  Rxa6 {[%clk 0:02:54]} 15. a4 {[%clk 0:02:45]}  Nc7 {[%clk 0:02:48]} 16. Nb1 {[%clk 0:02:45]}  Rc8 {[%clk 0:02:47]} 17. Nc3 {[%clk 0:02:45]}  Bb4 {[%clk 0:02:36]} 18. Ng5 {[%clk 0:02:44]}  Nf8 {[%clk 0:02:35]} 19. Bd2 {[%clk 0:02:41]}  Ra7 {[%clk 0:02:18]} 20. Qd3 {[%clk 0:02:38]}  h6 {[%clk 0:02:14]} 21. Nf3 {[%clk 0:02:19]}  Rb7 {[%clk 0:02:11]} 22. Nb5 {[%clk 0:02:10]}  Bxd2 {[%clk 0:02:09]} 23. Rxd2 {[%clk 0:02:07]}  Nxb5 {[%clk 0:02:08]} 24. Qxb5 {[%clk 0:02:05]}  Rc4 {[%clk 0:01:57]} 25. Ra3 {[%clk 0:01:48]}  Rb4 {[%clk 0:01:49]} 26. Qd3 {[%clk 0:01:44]}  Qe8 {[%clk 0:01:48]} 27. Qc2 {[%clk 0:01:35]}  Rc4 {[%clk 0:01:40]} 28. Qb3 {[%clk 0:01:31]}  b5 {[%clk 0:01:37]} 29. axb5 {[%clk 0:01:10]}  Rxb5 {[%clk 0:01:38]} 30. Qa2 {[%clk 0:01:10]}  Qd8 {[%clk 0:01:07]} 31. Ra4 {[%clk 0:00:55]}  Rc1+ {[%clk 0:01:03]} 32. Kg2 {[%clk 0:00:54]}  Ng6 {[%clk 0:01:03]} 33. h4 {[%clk 0:00:42]}  Ne7 {[%clk 0:01:02]} 34. Rd3 {[%clk 0:00:36]}  Qb6 {[%clk 0:00:56]} 35. Rd2 {[%clk 0:00:32]}  Nf5 {[%clk 0:00:54]} 36. Qa3 {[%clk 0:00:19]}  Rb3 {[%clk 0:00:49]} 37. Qa2 {[%clk 0:00:17]}  Qb5 {[%clk 0:00:46]} 38. Kh3 {[%clk 0:00:02]}  Qf1+ {[%clk 0:00:44]} 39. Kg4 {[%clk 0:00:02]}  Rxf3 {[%clk 0:00:30]} 40. Kxf3 {[%clk 0:00:02]}  Qh1+ {[%clk 0:00:28]} 41. Kg4 {[%clk 0:00:03]}  Qe4+ {[%clk 0:00:27]} 42. f4 {[%clk 0:00:03]}  Ne3+ {[%clk 0:00:22]} 43. Kh3 {[%clk 0:00:03]}  Rh1+ {[%clk 0:00:19]} 44. Rh2 {[%clk 0:00:03]}  Qg2# {[%clk 0:00:18]} 0-1


[Site "https://www.chess.com"]

[Event "Titled Tuesday Blitz June 6 Late 2023"]
[White "D`Arruda, Ricardo D."]
[Black "Kujawski, Adam"]
[WhiteFideId "100692"]
[BlackFideId "1100920"]
[WhiteElo "2534"]
[BlackElo "2054"]
[Result "1-0"]
[Round "10"]
[TimeControl "180+2"]
[Date "2023.06.07"]
[WhiteClock "0:00:48"]
[BlackClock "0:00:01"]
[Board "64"]

1. Nf3 {[%clk 0:02:58]}  d5 {[%clk 0:02:59]} 2. b3 {[%clk 0:02:57]}  c5 {[%clk 0:02:43]} 3. Bb2 {[%clk 0:02:57]}  f6 {[%clk 0:02:43]} 4. e3 {[%clk 0:02:57]}  e5 {[%clk 0:02:43]} 5. d4 {[%clk 0:02:58]}  cxd4 {[%clk 0:02:38]} 6. exd4 {[%clk 0:02:59]}  e4 {[%clk 0:02:39]} 7. Nfd2 {[%clk 0:02:59]}  Nc6 {[%clk 0:02:35]} 8. c4 {[%clk 0:02:59]}  f5 {[%clk 0:02:30]} 9. Nc3 {[%clk 0:02:58]}  Nf6 {[%clk 0:02:29]} 10. cxd5 {[%clk 0:02:57]}  Nb4 {[%clk 0:02:12]} 11. Bc4 {[%clk 0:02:42]}  Nbxd5 {[%clk 0:01:17]} 12. Nxd5 {[%clk 0:02:40]}  Nxd5 {[%clk 0:01:17]} 13. Nxe4 {[%clk 0:02:37]}  Bb4+ {[%clk 0:01:14]} 14. Nd2 {[%clk 0:02:24]}  O-O {[%clk 0:00:55]} 15. O-O {[%clk 0:02:20]}  Kh8 {[%clk 0:00:55]} 16. Nf3 {[%clk 0:02:18]}  b5 {[%clk 0:00:48]} 17. Bxb5 {[%clk 0:02:08]}  Bb7 {[%clk 0:00:49]} 18. Ne5 {[%clk 0:01:55]}  Qg5 {[%clk 0:00:40]} 19. Bc6 {[%clk 0:01:50]}  Bxc6 {[%clk 0:00:30]} 20. Nxc6 {[%clk 0:01:51]}  f4 {[%clk 0:00:15]} 21. Qf3 {[%clk 0:01:48]}  Bd6 {[%clk 0:00:09]} 22. Ne5 {[%clk 0:01:46]}  Bxe5 {[%clk 0:00:10]} 23. dxe5 {[%clk 0:01:46]}  Rad8 {[%clk 0:00:09]} 24. Rad1 {[%clk 0:01:44]}  Nb4 {[%clk 0:00:05]} 25. a3 {[%clk 0:01:36]}  Nd3 {[%clk 0:00:01]} 26. Rxd3 {[%clk 0:01:30]}  Rxd3 {[%clk 0:00:02]} 27. Qxd3 {[%clk 0:01:30]}  f3 {[%clk 0:00:03]} 28. g3 {[%clk 0:01:30]}  Qg4 {[%clk 0:00:04]} 29. Re1 {[%clk 0:01:28]}  Qh3 {[%clk 0:00:04]} 30. Qf1 {[%clk 0:01:28]}  Qe6 {[%clk 0:00:04]} 31. Re3 {[%clk 0:01:25]}  g5 {[%clk 0:00:02]} 32. h3 {[%clk 0:01:24]}  h5 {[%clk 0:00:02]} 33. Qd3 {[%clk 0:01:18]}  g4 {[%clk 0:00:03]} 34. Qd6 {[%clk 0:01:12]}  Qf5 {[%clk 0:00:03]} 35. e6+ {[%clk 0:00:54]}  Kg8 {[%clk 0:00:03]} 36. Qe5 {[%clk 0:00:49]}  Qb1+ {[%clk 0:00:02]} 37. Re1 {[%clk 0:00:49]}  Qxe1+ {[%clk 0:00:01]} 38. Qxe1 {[%clk 0:00:48]} 1-0


[Site "https://www.chess.com"]

[Event "Titled Tuesday Blitz June 6 Late 2023"]
[White "The_Straightforward_Rook"]
[Black "Garmendiarov"]
[WhiteElo "2386"]
[BlackElo "2500"]
[Result "1-0"]
[Round "10"]
[TimeControl "180+2"]
[Date "2023.06.07"]
[WhiteClock "0:01:34"]
[BlackClock "0:00:05"]
[Board "65"]

1. d4 {[%clk 0:03:00]}  Nf6 {[%clk 0:02:59]} 2. c4 {[%clk 0:03:00]}  d6 {[%clk 0:02:59]} 3. Nc3 {[%clk 0:02:59]}  e5 {[%clk 0:03:00]} 4. d5 {[%clk 0:02:58]}  g6 {[%clk 0:02:55]} 5. e4 {[%clk 0:02:57]}  Bg7 {[%clk 0:02:55]} 6. Be2 {[%clk 0:02:57]}  O-O {[%clk 0:02:56]} 7. h4 {[%clk 0:02:57]}  h5 {[%clk 0:02:55]} 8. Bg5 {[%clk 0:02:56]}  Nbd7 {[%clk 0:02:51]} 9. Nf3 {[%clk 0:02:53]}  a5 {[%clk 0:02:49]} 10. Qc2 {[%clk 0:02:50]}  Nc5 {[%clk 0:02:47]} 11. Nd2 {[%clk 0:02:50]}  c6 {[%clk 0:02:44]} 12. O-O {[%clk 0:02:45]}  Qe8 {[%clk 0:02:35]} 13. b3 {[%clk 0:02:43]}  Nh7 {[%clk 0:02:29]} 14. Be3 {[%clk 0:02:42]}  f5 {[%clk 0:02:23]} 15. Bxc5 {[%clk 0:02:37]}  dxc5 {[%clk 0:02:24]} 16. exf5 {[%clk 0:02:37]}  gxf5 {[%clk 0:02:22]} 17. dxc6 {[%clk 0:02:37]}  bxc6 {[%clk 0:02:22]} 18. Rae1 {[%clk 0:02:30]}  e4 {[%clk 0:02:05]} 19. Bd1 {[%clk 0:02:20]}  Qg6 {[%clk 0:01:46]} 20. Ne2 {[%clk 0:02:18]}  Be5 {[%clk 0:01:40]} 21. g3 {[%clk 0:02:11]}  Be6 {[%clk 0:01:28]} 22. Kh1 {[%clk 0:02:10]}  Rad8 {[%clk 0:01:28]} 23. Rg1 {[%clk 0:02:10]}  Qg4 {[%clk 0:01:21]} 24. Nf4 {[%clk 0:02:06]}  Qg7 {[%clk 0:00:49]} 25. Nxe6 {[%clk 0:02:06]}  Qf7 {[%clk 0:00:44]} 26. Nxf8 {[%clk 0:02:02]}  Nxf8 {[%clk 0:00:42]} 27. Nf1 {[%clk 0:01:59]}  Rd3 {[%clk 0:00:32]} 28. Qe2 {[%clk 0:01:52]}  Rf3 {[%clk 0:00:16]} 29. Nh2 {[%clk 0:01:48]}  Rd3 {[%clk 0:00:10]} 30. Qxh5 {[%clk 0:01:44]}  Ng6 {[%clk 0:00:09]} 31. Qg5 {[%clk 0:01:41]}  Kf8 {[%clk 0:00:08]} 32. Be2 {[%clk 0:01:37]}  Rd6 {[%clk 0:00:05]} 33. Rd1 {[%clk 0:01:36]}  Ne7 {[%clk 0:00:04]} 34. Rxd6 {[%clk 0:01:34]}  Bxd6 {[%clk 0:00:05]} 35. Qh6+ {[%clk 0:01:34]}  Ke8 {[%clk 0:00:05]} 36. Qxd6 {[%clk 0:01:34]} 1-0


[Site "https://www.chess.com"]